[Event "Titled Tuesday Blitz May 10 Late 2022"]
[White "Adewumi, Tanitoluwa"]
[Black "Gurevich, Dmitry"]
[WhiteFideId "30966396"]
[BlackFideId "2000407"]
[WhiteElo "2507"]
[BlackElo "2506"]
[Result "1/2-1/2"]
[Round "10"]
[TimeControl "180+1"]
[Date "2022.05.11"]
[WhiteClock "0:00:02"]
[BlackClock "0:00:01"]

1. e4 {[%clk 0:03:00]}  c5 {[%clk 0:02:59]} 2. Nf3 {[%clk 0:03:00]}  d6 {[%clk 0:02:59]} 3. Bb5+ {[%clk 0:03:01]}  Bd7 {[%clk 0:02:58]} 4. Bxd7+ {[%clk 0:03:01]}  Qxd7 {[%clk 0:02:59]} 5. c4 {[%clk 0:03:02]}  Nc6 {[%clk 0:02:58]} 6. Nc3 {[%clk 0:03:02]}  Nf6 {[%clk 0:02:57]} 7. d4 {[%clk 0:03:03]}  cxd4 {[%clk 0:02:57]} 8. Nxd4 {[%clk 0:03:04]}  e6 {[%clk 0:02:57]} 9. O-O {[%clk 0:03:03]}  Be7 {[%clk 0:02:57]} 10. Be3 {[%clk 0:03:03]}  O-O {[%clk 0:02:57]} 11. Rc1 {[%clk 0:03:04]}  Nxd4 {[%clk 0:02:54]} 12. Bxd4 {[%clk 0:03:03]}  b6 {[%clk 0:02:54]} 13. f3 {[%clk 0:03:02]}  Rac8 {[%clk 0:02:53]} 14. b3 {[%clk 0:03:02]}  Rfe8 {[%clk 0:02:51]} 15. Qd3 {[%clk 0:03:02]}  Qb7 {[%clk 0:02:43]} 16. Rfd1 {[%clk 0:03:01]}  Red8 {[%clk 0:02:41]} 17. Qe2 {[%clk 0:02:54]}  h6 {[%clk 0:02:40]} 18. a4 {[%clk 0:02:50]}  Nd7 {[%clk 0:02:37]} 19. Be3 {[%clk 0:02:34]}  Nc5 {[%clk 0:02:34]} 20. b4 {[%clk 0:02:34]}  Nd7 {[%clk 0:02:30]} 21. Nb5 {[%clk 0:02:34]}  Ne5 {[%clk 0:02:26]} 22. Bf4 {[%clk 0:02:29]}  a6 {[%clk 0:02:21]} 23. Nd4 {[%clk 0:02:28]}  Qc7 {[%clk 0:02:14]} 24. Rc2 {[%clk 0:02:16]}  Nc6 {[%clk 0:02:00]} 25. Nxc6 {[%clk 0:02:04]}  Qxc6 {[%clk 0:02:00]} 26. b5 {[%clk 0:02:05]}  axb5 {[%clk 0:01:49]} 27. axb5 {[%clk 0:02:05]}  Qc5+ {[%clk 0:01:41]} 28. Be3 {[%clk 0:02:05]}  Qc7 {[%clk 0:01:40]} 29. Rdc1 {[%clk 0:02:00]}  Qb7 {[%clk 0:01:36]} 30. Bf2 {[%clk 0:01:54]}  Rb8 {[%clk 0:01:30]} 31. Ra1 {[%clk 0:01:50]}  Rdc8 {[%clk 0:01:21]} 32. Ra6 {[%clk 0:01:48]}  Bd8 {[%clk 0:01:20]} 33. Rd2 {[%clk 0:01:47]}  Qc7 {[%clk 0:01:17]} 34. Ra4 {[%clk 0:01:42]}  Ra8 {[%clk 0:01:13]} 35. Rxa8 {[%clk 0:01:33]}  Rxa8 {[%clk 0:01:13]} 36. Qd3 {[%clk 0:01:30]}  Be7 {[%clk 0:01:03]} 37. Rd1 {[%clk 0:01:28]}  Ra4 {[%clk 0:00:57]} 38. Rc1 {[%clk 0:01:24]}  Qa7 {[%clk 0:00:55]} 39. g3 {[%clk 0:01:17]}  Ra2 {[%clk 0:00:49]} 40. Rc2 {[%clk 0:01:13]}  Ra3 {[%clk 0:00:45]} 41. Rc3 {[%clk 0:01:08]}  Ra1+ {[%clk 0:00:41]} 42. Kg2 {[%clk 0:01:07]}  Bf6 {[%clk 0:00:41]} 43. Rc2 {[%clk 0:01:05]}  Qc7 {[%clk 0:00:39]} 44. f4 {[%clk 0:01:02]}  Qb7 {[%clk 0:00:34]} 45. Kf3 {[%clk 0:01:00]}  Be7 {[%clk 0:00:30]} 46. Qd4 {[%clk 0:00:56]}  Ra3+ {[%clk 0:00:29]} 47. Rc3 {[%clk 0:00:48]}  Rxc3+ {[%clk 0:00:28]} 48. Qxc3 {[%clk 0:00:47]}  d5 {[%clk 0:00:28]} 49. cxd5 {[%clk 0:00:46]}  exd5 {[%clk 0:00:29]} 50. Qc6 {[%clk 0:00:45]}  dxe4+ {[%clk 0:00:29]} 51. Kxe4 {[%clk 0:00:46]}  Qa7 {[%clk 0:00:25]} 52. Bxb6 {[%clk 0:00:24]}  Qa4+ {[%clk 0:00:24]} 53. Bd4 {[%clk 0:00:22]}  Bf6 {[%clk 0:00:22]} 54. Qc8+ {[%clk 0:00:21]}  Kh7 {[%clk 0:00:21]} 55. Qf5+ {[%clk 0:00:22]}  Kg8 {[%clk 0:00:21]} 56. Qc5 {[%clk 0:00:21]}  Bxd4 {[%clk 0:00:20]} 57. Qxd4 {[%clk 0:00:19]}  Qxb5 {[%clk 0:00:20]} 58. Qd8+ {[%clk 0:00:20]}  Kh7 {[%clk 0:00:20]} 59. Qd3 {[%clk 0:00:20]}  Qxd3+ {[%clk 0:00:18]} 60. Kxd3 {[%clk 0:00:21]}  Kg6 {[%clk 0:00:19]} 61. Ke4 {[%clk 0:00:21]}  Kf6 {[%clk 0:00:15]} 62. Kd5 {[%clk 0:00:17]}  Kf5 {[%clk 0:00:15]} 63. h3 {[%clk 0:00:17]}  h5 {[%clk 0:00:15]} 64. Kd6 {[%clk 0:00:03]}  h4 {[%clk 0:00:14]} 65. gxh4 {[%clk 0:00:04]}  Kxf4 {[%clk 0:00:12]} 66. Ke7 {[%clk 0:00:05]}  f5 {[%clk 0:00:10]} 67. Kf7 {[%clk 0:00:05]}  Ke5 {[%clk 0:00:06]} 68. h5 {[%clk 0:00:02]}  f4 {[%clk 0:00:05]} 69. Kxg7 {[%clk 0:00:02]}  f3 {[%clk 0:00:05]} 70. h6 {[%clk 0:00:03]}  f2 {[%clk 0:00:05]} 71. h7 {[%clk 0:00:04]}  f1=Q {[%clk 0:00:04]} 72. h8=Q {[%clk 0:00:05]}  Qf6+ {[%clk 0:00:02]} 73. Kh7 {[%clk 0:00:05]}  Qxh8+ {[%clk 0:00:01]} 74. Kxh8 {[%clk 0:00:06]}  Kf5 {[%clk 0:00:01]} 75. h4 {[%clk 0:00:03]}  Kg6 {[%clk 0:00:01]} 76. h5+ {[%clk 0:00:02]}  Kxh5 {[%clk 0:00:01]} 1/2-1/2


[Site "https://www.chess.com"]

[Event "Titled Tuesday Blitz May 10 Late 2022"]
[White "Aggelis, Nikolaos"]
[Black "Manukian, Artak"]
[WhiteFideId "4213220"]
[BlackFideId "13301373"]
[WhiteElo "2154"]
[BlackElo "2422"]
[Result "1/2-1/2"]
[Round "10"]
[TimeControl "180+1"]
[Date "2022.05.11"]
[WhiteClock "0:00:14"]
[BlackClock "0:00:38"]

1. d4 {[%clk 0:03:00]}  Nf6 {[%clk 0:02:59]} 2. g3 {[%clk 0:03:01]}  d5 {[%clk 0:02:58]} 3. Nf3 {[%clk 0:03:00]}  Bg4 {[%clk 0:02:58]} 4. Ne5 {[%clk 0:02:59]}  Bf5 {[%clk 0:02:57]} 5. f3 {[%clk 0:02:54]}  Nbd7 {[%clk 0:02:57]} 6. g4 {[%clk 0:02:54]}  Be6 {[%clk 0:02:51]} 7. Bf4 {[%clk 0:02:44]}  c6 {[%clk 0:02:43]} 8. c3 {[%clk 0:02:41]}  Qb6 {[%clk 0:02:42]} 9. Qb3 {[%clk 0:02:41]}  Nxe5 {[%clk 0:02:41]} 10. Bxe5 {[%clk 0:02:38]}  Nd7 {[%clk 0:02:40]} 11. Bg3 {[%clk 0:02:38]}  h5 {[%clk 0:02:40]} 12. g5 {[%clk 0:02:35]}  g6 {[%clk 0:02:39]} 13. h4 {[%clk 0:02:32]}  Bg7 {[%clk 0:02:26]} 14. Nd2 {[%clk 0:02:32]}  O-O {[%clk 0:02:25]} 15. Qxb6 {[%clk 0:02:33]}  axb6 {[%clk 0:02:24]} 16. a3 {[%clk 0:02:32]}  b5 {[%clk 0:02:24]} 17. O-O-O {[%clk 0:02:03]}  Nb6 {[%clk 0:02:21]} 18. e4 {[%clk 0:02:02]}  Nc4 {[%clk 0:02:19]} 19. Nxc4 {[%clk 0:01:55]}  bxc4 {[%clk 0:02:18]} 20. Bh3 {[%clk 0:01:52]}  Bxh3 {[%clk 0:02:17]} 21. Rxh3 {[%clk 0:01:53]}  e6 {[%clk 0:02:17]} 22. Bd6 {[%clk 0:01:49]}  Rfd8 {[%clk 0:02:15]} 23. Bb4 {[%clk 0:01:44]}  Bf8 {[%clk 0:02:12]} 24. Bxf8 {[%clk 0:01:42]}  Kxf8 {[%clk 0:02:13]} 25. Kc2 {[%clk 0:01:39]}  b5 {[%clk 0:02:12]} 26. Rhh1 {[%clk 0:01:28]}  Ke7 {[%clk 0:02:08]} 27. Rhe1 {[%clk 0:01:28]}  Kd6 {[%clk 0:02:07]} 28. Ra1 {[%clk 0:01:15]}  c5 {[%clk 0:02:03]} 29. Rad1 {[%clk 0:01:10]}  cxd4 {[%clk 0:02:01]} 30. Rxd4 {[%clk 0:01:09]}  Kc5 {[%clk 0:02:01]} 31. exd5 {[%clk 0:01:08]}  Rxd5 {[%clk 0:02:01]} 32. Rxd5+ {[%clk 0:00:53]}  Kxd5 {[%clk 0:02:00]} 33. Rd1+ {[%clk 0:00:53]}  Kc6 {[%clk 0:01:59]} 34. Rd4 {[%clk 0:00:53]}  Ra7 {[%clk 0:01:55]} 35. Rf4 {[%clk 0:00:49]}  Kd5 {[%clk 0:01:53]} 36. b3 {[%clk 0:00:43]}  e5 {[%clk 0:01:25]} 37. bxc4+ {[%clk 0:00:42]}  bxc4 {[%clk 0:01:24]} 38. Rf6 {[%clk 0:00:41]}  Rxa3 {[%clk 0:01:18]} 39. Rxf7 {[%clk 0:00:42]}  Ra2+ {[%clk 0:01:18]} 40. Kd1 {[%clk 0:00:41]}  Ra3 {[%clk 0:01:17]} 41. Kd2 {[%clk 0:00:35]}  Ra2+ {[%clk 0:01:17]} 42. Ke3 {[%clk 0:00:34]}  Rc2 {[%clk 0:01:17]} 43. Rd7+ {[%clk 0:00:33]}  Ke6 {[%clk 0:01:16]} 44. Rg7 {[%clk 0:00:34]}  Rxc3+ {[%clk 0:01:16]} 45. Ke4 {[%clk 0:00:34]}  Rc1 {[%clk 0:01:06]} 46. Rxg6+ {[%clk 0:00:34]}  Kd7 {[%clk 0:01:04]} 47. Rg7+ {[%clk 0:00:18]}  Kd6 {[%clk 0:01:03]} 48. Rg6+ {[%clk 0:00:18]}  Kd7 {[%clk 0:01:02]} 49. Rg7+ {[%clk 0:00:17]}  Kd6 {[%clk 0:01:02]} 50. Rg8 {[%clk 0:00:17]}  Rh1 {[%clk 0:01:00]} 51. Kf5 {[%clk 0:00:13]}  Rxh4 {[%clk 0:00:59]} 52. g6 {[%clk 0:00:14]}  Rf4+ {[%clk 0:00:59]} 53. Kg5 {[%clk 0:00:14]}  Rxf3 {[%clk 0:00:59]} 54. Kxh5 {[%clk 0:00:13]}  Rg3 {[%clk 0:00:53]} 55. Rc8 {[%clk 0:00:13]}  Kd5 {[%clk 0:00:51]} 56. Kh6 {[%clk 0:00:10]}  e4 {[%clk 0:00:49]} 57. g7 {[%clk 0:00:10]}  e3 {[%clk 0:00:47]} 58. Rd8+ {[%clk 0:00:10]}  Ke4 {[%clk 0:00:47]} 59. Re8+ {[%clk 0:00:10]}  Kd3 {[%clk 0:00:47]} 60. Rd8+ {[%clk 0:00:10]}  Kc3 {[%clk 0:00:44]} 61. Rd6 {[%clk 0:00:11]}  Rxg7 {[%clk 0:00:43]} 62. Kxg7 {[%clk 0:00:12]}  e2 {[%clk 0:00:42]} 63. Re6 {[%clk 0:00:12]}  Kd2 {[%clk 0:00:42]} 64. Rd6+ {[%clk 0:00:12]}  Ke3 {[%clk 0:00:42]} 65. Re6+ {[%clk 0:00:13]}  Kd3 {[%clk 0:00:40]} 66. Rd6+ {[%clk 0:00:13]}  Ke3 {[%clk 0:00:38]} 67. Re6+ {[%clk 0:00:13]}  Kd3 {[%clk 0:00:39]} 68. Rd6+ {[%clk 0:00:14]}  Ke3 {[%clk 0:00:38]} 1/2-1/2


[Site "https://www.chess.com"]

[Event "Titled Tuesday Blitz May 10 Late 2022"]
[White "Antonova, Nadezhda"]
[Black "Mangialardo, Tiago Carvalho"]
[WhiteFideId "14700182"]
[BlackFideId "2130718"]
[WhiteElo "1743"]
[BlackElo "2105"]
[Result "1-0"]
[Round "10"]
[TimeControl "180+1"]
[Date "2022.05.11"]
[WhiteClock "0:00:07"]
[BlackClock "0:00:12"]

1. d4 {[%clk 0:02:59]}  d5 {[%clk 0:02:59]} 2. Nf3 {[%clk 0:02:59]}  Nf6 {[%clk 0:03:00]} 3. e3 {[%clk 0:02:58]}  e6 {[%clk 0:02:57]} 4. Nbd2 {[%clk 0:02:58]}  Be7 {[%clk 0:02:57]} 5. Bd3 {[%clk 0:02:59]}  O-O {[%clk 0:02:57]} 6. b3 {[%clk 0:02:59]}  Nbd7 {[%clk 0:02:58]} 7. Bb2 {[%clk 0:02:59]}  b6 {[%clk 0:02:58]} 8. O-O {[%clk 0:02:59]}  Bb7 {[%clk 0:02:59]} 9. Ne5 {[%clk 0:02:59]}  c5 {[%clk 0:02:58]} 10. f4 {[%clk 0:02:58]}  Qc7 {[%clk 0:02:41]} 11. Rc1 {[%clk 0:02:46]}  Rac8 {[%clk 0:02:38]} 12. c3 {[%clk 0:02:35]}  a6 {[%clk 0:02:37]} 13. Qf3 {[%clk 0:02:31]}  b5 {[%clk 0:02:27]} 14. Qh3 {[%clk 0:02:24]}  Ne4 {[%clk 0:02:13]} 15. Ndf3 {[%clk 0:02:12]}  c4 {[%clk 0:01:32]} 16. Bb1 {[%clk 0:02:10]}  Qd6 {[%clk 0:01:27]} 17. Nxd7 {[%clk 0:01:55]}  Qxd7 {[%clk 0:01:25]} 18. Ne5 {[%clk 0:01:56]}  Qd6 {[%clk 0:01:23]} 19. Rcd1 {[%clk 0:01:28]}  f5 {[%clk 0:01:20]} 20. Bxe4 {[%clk 0:01:21]}  fxe4 {[%clk 0:01:06]} 21. b4 {[%clk 0:01:09]}  Qd8 {[%clk 0:01:03]} 22. Qxe6+ {[%clk 0:01:04]}  Kh8 {[%clk 0:01:00]} 23. Nf7+ {[%clk 0:00:58]}  Rxf7 {[%clk 0:00:58]} 24. Qxf7 {[%clk 0:00:58]}  Rc6 {[%clk 0:00:57]} 25. Qh5 {[%clk 0:00:42]}  Bc8 {[%clk 0:00:56]} 26. Qe2 {[%clk 0:00:40]}  Rg6 {[%clk 0:00:55]} 27. Kh1 {[%clk 0:00:38]}  Bf5 {[%clk 0:00:48]} 28. h3 {[%clk 0:00:37]}  Bh4 {[%clk 0:00:45]} 29. Bc1 {[%clk 0:00:35]}  Bg3 {[%clk 0:00:44]} 30. Bd2 {[%clk 0:00:35]}  Qh4 {[%clk 0:00:37]} 31. Be1 {[%clk 0:00:35]}  Bxh3 {[%clk 0:00:17]} 32. Bxg3 {[%clk 0:00:34]}  Bxg2+ {[%clk 0:00:11]} 33. Kg1 {[%clk 0:00:09]}  Qxg3 {[%clk 0:00:03]} 34. Rf2 {[%clk 0:00:08]}  Bf3+ {[%clk 0:00:02]} 35. Kf1 {[%clk 0:00:06]}  Qh3+ {[%clk 0:00:02]} 36. Ke1 {[%clk 0:00:06]}  Qh1+ {[%clk 0:00:02]} 37. Kd2 {[%clk 0:00:06]}  Qh3 {[%clk 0:00:03]} 38. Rh2 {[%clk 0:00:05]}  Bxe2 {[%clk 0:00:03]} 39. Rxh3 {[%clk 0:00:05]}  Bxd1 {[%clk 0:00:04]} 40. Kxd1 {[%clk 0:00:05]}  Rg1+ {[%clk 0:00:05]} 41. Kd2 {[%clk 0:00:06]}  Rg2+ {[%clk 0:00:06]} 42. Kc1 {[%clk 0:00:06]}  Rxa2 {[%clk 0:00:07]} 43. Rh5 {[%clk 0:00:06]}  Ra3 {[%clk 0:00:05]} 44. Kb2 {[%clk 0:00:05]}  Ra4 {[%clk 0:00:04]} 45. Rxd5 {[%clk 0:00:05]}  Kg8 {[%clk 0:00:03]} 46. Re5 {[%clk 0:00:05]}  Kf7 {[%clk 0:00:04]} 47. Rxe4 {[%clk 0:00:05]}  h5 {[%clk 0:00:04]} 48. Re5 {[%clk 0:00:05]}  g6 {[%clk 0:00:04]} 49. d5 {[%clk 0:00:04]}  a5 {[%clk 0:00:03]} 50. d6 {[%clk 0:00:04]}  axb4 {[%clk 0:00:02]} 51. d7 {[%clk 0:00:04]}  bxc3+ {[%clk 0:00:02]} 52. Kxc3 {[%clk 0:00:04]}  Ra8 {[%clk 0:00:03]} 53. Rd5 {[%clk 0:00:04]}  Rd8 {[%clk 0:00:03]} 54. e4 {[%clk 0:00:04]}  Ke7 {[%clk 0:00:03]} 55. Rxb5 {[%clk 0:00:04]}  Rxd7 {[%clk 0:00:03]} 56. Rg5 {[%clk 0:00:03]}  Kf6 {[%clk 0:00:03]} 57. Kxc4 {[%clk 0:00:03]}  Re7 {[%clk 0:00:02]} 58. e5+ {[%clk 0:00:03]}  Kf7 {[%clk 0:00:02]} 59. Kd5 {[%clk 0:00:03]}  Re8 {[%clk 0:00:02]} 60. Ke4 {[%clk 0:00:03]}  Rc8 {[%clk 0:00:02]} 61. Rg3 {[%clk 0:00:02]}  Rc4+ {[%clk 0:00:03]} 62. Kd5 {[%clk 0:00:02]}  Ra4 {[%clk 0:00:03]} 63. Rf3 {[%clk 0:00:02]}  Ra5+ {[%clk 0:00:04]} 64. Ke4 {[%clk 0:00:02]}  Ra4+ {[%clk 0:00:04]} 65. Ke3 {[%clk 0:00:02]}  Ke6 {[%clk 0:00:04]} 66. Kf2 {[%clk 0:00:01]}  Kf5 {[%clk 0:00:04]} 67. Kg3 {[%clk 0:00:02]}  Re4 {[%clk 0:00:03]} 68. Kg2 {[%clk 0:00:01]}  Rxf4 {[%clk 0:00:01]} 69. Rxf4+ {[%clk 0:00:01]}  Kxf4 {[%clk 0:00:02]} 70. e6 {[%clk 0:00:02]}  h4 {[%clk 0:00:03]} 71. e7 {[%clk 0:00:02]}  g5 {[%clk 0:00:04]} 72. e8=Q {[%clk 0:00:02]}  g4 {[%clk 0:00:04]} 73. Qa4+ {[%clk 0:00:02]}  Kg5 {[%clk 0:00:05]} 74. Qb5+ {[%clk 0:00:02]}  Kf4 {[%clk 0:00:04]} 75. Qc4+ {[%clk 0:00:02]}  Kg5 {[%clk 0:00:05]} 76. Qd5+ {[%clk 0:00:03]}  Kf4 {[%clk 0:00:05]} 77. Qd4+ {[%clk 0:00:03]}  Kg5 {[%clk 0:00:06]} 78. Kh2 {[%clk 0:00:04]}  h3 {[%clk 0:00:06]} 79. Qe5+ {[%clk 0:00:04]}  Kh4 {[%clk 0:00:07]} 80. Qf6+ {[%clk 0:00:03]}  Kh5 {[%clk 0:00:07]} 81. Qf5+ {[%clk 0:00:03]}  Kh4 {[%clk 0:00:08]} 82. Qf2+ {[%clk 0:00:04]}  Kg5 {[%clk 0:00:07]} 83. Qg3 {[%clk 0:00:04]}  Kf5 {[%clk 0:00:08]} 84. Kg1 {[%clk 0:00:04]}  Kg5 {[%clk 0:00:08]} 85. Kf2 {[%clk 0:00:05]}  Kf5 {[%clk 0:00:09]} 86. Ke3 {[%clk 0:00:05]}  Kg5 {[%clk 0:00:10]} 87. Qf4+ {[%clk 0:00:05]}  Kh4 {[%clk 0:00:11]} 88. Kf2 {[%clk 0:00:05]}  Kh5 {[%clk 0:00:11]} 89. Qg3 {[%clk 0:00:06]}  Kg5 {[%clk 0:00:11]} 90. Ke3 {[%clk 0:00:06]}  Kf5 {[%clk 0:00:11]} 91. Kd4 {[%clk 0:00:06]}  Kg5 {[%clk 0:00:12]} 92. Ke4 {[%clk 0:00:07]}  Kh5 {[%clk 0:00:12]} 93. Kf4 {[%clk 0:00:07]}  h2 {[%clk 0:00:12]} 94. Qxh2+ {[%clk 0:00:07]}  Kg6 {[%clk 0:00:12]} 95. Kxg4 {[%clk 0:00:07]} 1-0


[Site "https://www.chess.com"]

[Event "Titled Tuesday Blitz May 10 Late 2022"]
[White "Babazada, Khazar"]
[Black "Sjugirov, Sanan"]
[WhiteFideId "13413554"]
[BlackFideId "4189302"]
[WhiteElo "2406"]
[BlackElo "2602"]
[Result "0-1"]
[Round "10"]
[TimeControl "180+1"]
[Date "2022.05.10"]
[WhiteClock "0:00:09"]
[BlackClock "0:00:04"]

1. Nf3 {[%clk 0:03:00]}  Nf6 {[%clk 0:03:00]} 2. g3 {[%clk 0:03:01]}  d5 {[%clk 0:03:00]} 3. Bg2 {[%clk 0:03:01]}  Nbd7 {[%clk 0:03:01]} 4. O-O {[%clk 0:02:55]}  e5 {[%clk 0:03:01]} 5. d3 {[%clk 0:02:56]}  Bd6 {[%clk 0:03:00]} 6. Nbd2 {[%clk 0:02:57]}  O-O {[%clk 0:03:00]} 7. e4 {[%clk 0:02:57]}  c6 {[%clk 0:03:00]} 8. b3 {[%clk 0:02:57]}  Re8 {[%clk 0:03:00]} 9. Bb2 {[%clk 0:02:57]}  Nf8 {[%clk 0:03:01]} 10. Re1 {[%clk 0:02:55]}  Ng6 {[%clk 0:03:01]} 11. a3 {[%clk 0:02:41]}  a5 {[%clk 0:03:01]} 12. exd5 {[%clk 0:02:32]}  cxd5 {[%clk 0:03:01]} 13. c4 {[%clk 0:02:33]}  d4 {[%clk 0:03:01]} 14. Ng5 {[%clk 0:02:32]}  h6 {[%clk 0:02:57]} 15. Nge4 {[%clk 0:02:32]}  Nxe4 {[%clk 0:02:58]} 16. Nxe4 {[%clk 0:02:33]}  Bf8 {[%clk 0:02:58]} 17. Qc2 {[%clk 0:02:26]}  Qc7 {[%clk 0:02:53]} 18. Rac1 {[%clk 0:02:14]}  Be6 {[%clk 0:02:52]} 19. c5 {[%clk 0:02:11]}  Rac8 {[%clk 0:02:50]} 20. b4 {[%clk 0:02:11]}  axb4 {[%clk 0:02:50]} 21. axb4 {[%clk 0:02:12]}  Ra8 {[%clk 0:02:44]} 22. Ra1 {[%clk 0:01:55]}  Rec8 {[%clk 0:02:39]} 23. Nd2 {[%clk 0:01:55]}  Rxa1 {[%clk 0:02:30]} 24. Rxa1 {[%clk 0:01:56]}  b6 {[%clk 0:02:30]} 25. Nc4 {[%clk 0:01:29]}  bxc5 {[%clk 0:02:29]} 26. b5 {[%clk 0:01:29]}  Rb8 {[%clk 0:02:10]} 27. b6 {[%clk 0:01:27]}  Rxb6 {[%clk 0:02:10]} 28. Nxb6 {[%clk 0:01:25]}  Qxb6 {[%clk 0:02:11]} 29. Ra8 {[%clk 0:01:25]}  Kh7 {[%clk 0:02:08]} 30. Ba3 {[%clk 0:01:15]}  Bd6 {[%clk 0:02:05]} 31. h4 {[%clk 0:01:09]}  f5 {[%clk 0:02:00]} 32. h5 {[%clk 0:01:07]}  Ne7 {[%clk 0:01:58]} 33. Qe2 {[%clk 0:00:54]}  c4 {[%clk 0:01:42]} 34. dxc4 {[%clk 0:00:50]}  Bxa3 {[%clk 0:01:38]} 35. Rxa3 {[%clk 0:00:51]}  e4 {[%clk 0:01:20]} 36. g4 {[%clk 0:00:50]}  d3 {[%clk 0:01:16]} 37. Qd2 {[%clk 0:00:45]}  Nc6 {[%clk 0:00:41]} 38. gxf5 {[%clk 0:00:44]}  Bxf5 {[%clk 0:00:41]} 39. Qf4 {[%clk 0:00:44]}  Nd4 {[%clk 0:00:40]} 40. Kh2 {[%clk 0:00:35]}  d2 {[%clk 0:00:34]} 41. Bxe4 {[%clk 0:00:20]}  Qc5 {[%clk 0:00:07]} 42. Bxf5+ {[%clk 0:00:16]}  Nxf5 {[%clk 0:00:08]} 43. Rd3 {[%clk 0:00:14]}  Ne3 {[%clk 0:00:06]} 44. Qe4+ {[%clk 0:00:12]}  Kg8 {[%clk 0:00:05]} 45. Rd8+ {[%clk 0:00:12]}  Kf7 {[%clk 0:00:06]} 46. Rd7+ {[%clk 0:00:08]}  Kf8 {[%clk 0:00:05]} 47. Rd8+ {[%clk 0:00:04]}  Kf7 {[%clk 0:00:05]} 48. Qg6+ {[%clk 0:00:05]}  Ke7 {[%clk 0:00:06]} 49. Qe8+ {[%clk 0:00:02]}  Kf6 {[%clk 0:00:06]} 50. Qxe3 {[%clk 0:00:02]}  Qc7+ {[%clk 0:00:05]} 51. Kg2 {[%clk 0:00:01]}  Qxd8 {[%clk 0:00:05]} 52. Qf3+ {[%clk 0:00:02]}  Kg5 {[%clk 0:00:04]} 53. Qg3+ {[%clk 0:00:02]}  Kxh5 {[%clk 0:00:04]} 54. Qe5+ {[%clk 0:00:02]}  Kg6 {[%clk 0:00:04]} 55. Qe4+ {[%clk 0:00:02]}  Kf7 {[%clk 0:00:05]} 56. Qf3+ {[%clk 0:00:02]}  Kg8 {[%clk 0:00:05]} 57. Qd1 {[%clk 0:00:03]}  Qd3 {[%clk 0:00:05]} 58. c5 {[%clk 0:00:03]}  Kf7 {[%clk 0:00:04]} 59. c6 {[%clk 0:00:03]}  Ke7 {[%clk 0:00:04]} 60. c7 {[%clk 0:00:03]}  Kd7 {[%clk 0:00:05]} 61. Qg4+ {[%clk 0:00:04]}  Kxc7 {[%clk 0:00:05]} 62. Qxg7+ {[%clk 0:00:05]}  Qd7 {[%clk 0:00:05]} 63. Qe5+ {[%clk 0:00:05]}  Qd6 {[%clk 0:00:05]} 64. Qg7+ {[%clk 0:00:05]}  Kb6 {[%clk 0:00:05]} 65. Qb2+ {[%clk 0:00:05]}  Ka7 {[%clk 0:00:05]} 66. Qa2+ {[%clk 0:00:04]}  Kb7 {[%clk 0:00:05]} 67. Qb2+ {[%clk 0:00:05]}  Kc8 {[%clk 0:00:06]} 68. Qh8+ {[%clk 0:00:05]}  Qd8 {[%clk 0:00:06]} 69. Qc3+ {[%clk 0:00:05]}  Kb7 {[%clk 0:00:06]} 70. Qb2+ {[%clk 0:00:05]}  Kc6 {[%clk 0:00:05]} 71. Qc2+ {[%clk 0:00:05]}  Kb6 {[%clk 0:00:05]} 72. Qb3+ {[%clk 0:00:05]}  Ka7 {[%clk 0:00:04]} 73. Qa2+ {[%clk 0:00:06]}  Kb7 {[%clk 0:00:04]} 74. Qb2+ {[%clk 0:00:06]}  Kc8 {[%clk 0:00:05]} 75. Qc2+ {[%clk 0:00:06]}  Kb8 {[%clk 0:00:05]} 76. Qb2+ {[%clk 0:00:06]}  Ka7 {[%clk 0:00:06]} 77. Qa2+ {[%clk 0:00:07]}  Kb6 {[%clk 0:00:06]} 78. Qb2+ {[%clk 0:00:07]}  Kc5 {[%clk 0:00:06]} 79. Qc2+ {[%clk 0:00:08]}  Kb4 {[%clk 0:00:05]} 80. Qb2+ {[%clk 0:00:08]}  Ka5 {[%clk 0:00:05]} 81. Qa2+ {[%clk 0:00:08]}  Kb6 {[%clk 0:00:05]} 82. Qb2+ {[%clk 0:00:09]}  Kc7 {[%clk 0:00:05]} 83. Qa2 {[%clk 0:00:09]}  d1=Q {[%clk 0:00:04]} 0-1


[Site "https://www.chess.com"]

[Event "Titled Tuesday Blitz May 10 Late 2022"]
[White "Butti, Enrique"]
[Black "Gomez Dieguez, David"]
[WhiteFideId "3700470"]
[BlackFideId "22223630"]
[WhiteElo "2080"]
[BlackElo "2115"]
[Result "1-0"]
[Round "10"]
[TimeControl "180+1"]
[Date "2022.05.11"]
[WhiteClock "0:00:28"]
[BlackClock "0:00:15"]

1. d4 {[%clk 0:02:59]}  Nf6 {[%clk 0:02:59]} 2. Nf3 {[%clk 0:02:58]}  d5 {[%clk 0:02:59]} 3. c4 {[%clk 0:02:57]}  e6 {[%clk 0:02:55]} 4. e3 {[%clk 0:02:57]}  Be7 {[%clk 0:02:55]} 5. Nc3 {[%clk 0:02:56]}  O-O {[%clk 0:02:54]} 6. b3 {[%clk 0:02:55]}  c5 {[%clk 0:02:52]} 7. Bb2 {[%clk 0:02:55]}  cxd4 {[%clk 0:02:49]} 8. exd4 {[%clk 0:02:54]}  b6 {[%clk 0:02:50]} 9. Bd3 {[%clk 0:02:54]}  Bb7 {[%clk 0:02:49]} 10. O-O {[%clk 0:02:53]}  Nc6 {[%clk 0:02:50]} 11. Qe2 {[%clk 0:02:52]}  Nb4 {[%clk 0:02:50]} 12. Bb1 {[%clk 0:02:51]}  dxc4 {[%clk 0:02:49]} 13. bxc4 {[%clk 0:02:51]}  Bxf3 {[%clk 0:02:49]} 14. gxf3 {[%clk 0:02:49]}  Bd6 {[%clk 0:02:49]} 15. a3 {[%clk 0:02:34]}  Nh5 {[%clk 0:02:07]} 16. Qe4 {[%clk 0:02:12]}  Nf6 {[%clk 0:01:58]} 17. Qh4 {[%clk 0:02:09]}  Nc6 {[%clk 0:01:53]} 18. d5 {[%clk 0:01:56]}  Na5 {[%clk 0:01:38]} 19. Nb5 {[%clk 0:01:48]}  e5 {[%clk 0:01:28]} 20. Re1 {[%clk 0:01:21]}  Nxc4 {[%clk 0:01:26]} 21. Qxc4 {[%clk 0:01:19]}  Rc8 {[%clk 0:01:24]} 22. Qh4 {[%clk 0:01:17]}  Be7 {[%clk 0:01:11]} 23. Bxe5 {[%clk 0:01:13]}  h6 {[%clk 0:00:46]} 24. d6 {[%clk 0:01:10]}  Bxd6 {[%clk 0:00:42]} 25. Nxd6 {[%clk 0:01:04]}  Rc5 {[%clk 0:00:27]} 26. Nf5 {[%clk 0:00:43]}  Rxe5 {[%clk 0:00:23]} 27. Rxe5 {[%clk 0:00:40]}  Qd1+ {[%clk 0:00:22]} 28. Kg2 {[%clk 0:00:39]}  Nh7 {[%clk 0:00:15]} 29. Nxh6+ {[%clk 0:00:31]}  Kh8 {[%clk 0:00:14]} 30. Nxf7+ {[%clk 0:00:29]}  Rxf7 {[%clk 0:00:15]} 31. Qxh7# {[%clk 0:00:28]} 1-0


[Site "https://www.chess.com"]